Cogmind - Beta 14 @@@ ROGUE MODE // 2024.12.12 @ 02:27:26 Player: JAM Result: Destroyed by Y-45 Defender with Beam Rifle Performance ------------- Evolutions (1) 500 Regions Visited (3) 600 Robots Destroyed (25) 125 Value Destroyed (527) 527 Prototype IDs (0) 0 Alien Tech Used (0) 0 Bonus (0) 0 TOTAL SCORE: 1752 Bonus ------- None Cogmind --------- Core Integrity 0/400 Matter 300/300 Energy 100/100 System Corruption 0% Temperature Cool (9) Movement Core (200) Ox3 Location -9/Materials Parts ------- > --- POWER (1) -------- (None) > --- PROPULSION (3) --- (None) > --- UTILITY (3) ------ Medium Storage Unit Signal Interpreter > --- WEAPON (2) ------- (None) > --- INVENTORY (10) --- Aluminum Leg Wheel Cooling System Huge Storage Unit Weight Redist. System EM Shotgun Rocket Launcher Peak State ------------ > --- POWER ------------ Light Ion Engine > --- PROPULSION ------- Aluminum Leg Aluminum Leg Aluminum Leg > --- UTILITY ---------- Heat Sink Medium Storage Unit Signal Interpreter > --- WEAPON ----------- Small Laser Light Assault Rifle > --- INVENTORY -------- Wheel Wheel Cooling System Disposable Heat Sink Huge Storage Unit EM Pulse Gun Small Laser Light Assault Rifle [Rating: 10] Favorites ----------- Power Light Ion Engine Engine Light Ion Engine Propulsion Aluminum Leg Leg Aluminum Leg Wheel Wheel Utility Medium Storage Unit Device Heat Sink Storage Medium Storage Unit Processor Signal Interpreter Weapon Medium Laser Energy Gun Medium Laser Ballistic Gun Light Assault Rifle Launcher Grenade Launcher Build | -11 -10 -10 -9 ------- Run | Yrd Mat Min Mat Slots Evolved 2 | . . . 2 Power . | . . . . Propulsion 1 | . . . 1 Utility 1 | . . . 1 Weapon . | . . . . Parts Attached 27 | 5 4 10 8 Power 3 | 1 . 2 . Engine 3 | 1 . 2 . Core . | . . . . Reactor . | . . . . Propulsion 8 | 2 1 2 3 Treads . | . . . . Leg 6 | 2 1 2 1 Wheel 2 | . . . 2 Hover . | . . . . Flight . | . . . . Utility 6 | . 2 2 2 Device 2 | . 1 . 1 Storage 3 | . 1 2 . Processor 1 | . . . 1 Hackware . | . . . . Protection . | . . . . Artifact . | . . . . Weapon 10 | 2 1 4 3 Energy Gun 6 | 2 . 2 2 Energy Cannon . | . . . . Ballistic Gun 3 | . . 2 1 Ballistic Cannon . | . . . . Launcher 1 | . 1 . . Special Weapon . | . . . . Impact Weapon . | . . . . Slashing Weapon . | . . . . Piercing Weapon . | . . . . Special Melee Weapon . | . . . . Unidentified Prototypes . | . . . . Parts Lost 18 | . . 5 13 Power 2 | . . 1 1 Propulsion 6 | . . 1 5 Utility 2 | . . . 2 Weapon 8 | . . 3 5 Highest Loss Streak 9 | . . 3 9 To Critical Strikes . | . . . . Average Slot Usage (%) 90 | . 97 94 84 Engine 11 | . 14 13 9 Leg 21 | . 28 23 17 Wheel 2 | . . . 6 Device 12 | . 13 14 10 Storage 12 | . 12 14 11 Processor 4 | . . . 10 Energy Gun 13 | . 14 15 10 Ballistic Gun 6 | . . 6 8 Launcher 4 | . 13 5 . Peak Build Rating 10 | 5 8 8 10 Average Rating 7 | 3 6 7 8 On Entrance 5 | . 5 8 7 Naked Turns . | . . . . Heaviest Build 19 | 6 19 19 16 Greatest Support 30 | 20 20 20 30 Greatest Overweight (x) 4 | . . 1 4 Average Overweight (x) . | . . . . Largest Inventory Capacity 25 | 5 10 25 10 Average Capacity 9 | 5 9 10 10 Most Carried 10 | 5 10 10 10 Average Carried 7 | 2 5 9 8 Final Capacity 10 | 5 10 10 10 Final Carried 10 | 5 10 7 7 Class Distribution -------------------- 98% | Mutant Dominant Class ---------------- Mutant | -10/Materials Mutant | -10/Mines Mutant | -9/Materials Resources | -11 -10 -10 -9 ----------- Run | Yrd Mat Min Mat Matter Collected 567 | 250 36 217 64 Remotely . | . . . . Salvage Created 712 | 37 220 123 332 Parts 46 | 3 20 2 21 Haulers Intercepted 1 | . 1 . . Recyclers Shooed . | . . . . Parts Field Recycled . | . . . . Retrieved Matter . | . . . . Parts Self-Destructed . | . . . . Prevented . | . . . . Kills | -11 -10 -10 -9 ------- Run | Yrd Mat Min Mat Combat Hostiles Destroyed 26 | 1 8 7 10 Guns 15 | 1 1 3 10 AOE 11 | . 7 4 . Classes Destroyed 8 | 1 5 1 1 Builder 1 | . 1 . . Tunneler 1 | . 1 . . Hauler 1 | . 1 . . Recycler 1 | . 1 . . Swarmer 11 | . 6 . 5 Grunt 6 | 1 2 2 1 Sentry 4 | . . . 4 Assembled 5 | . . 5 . Best Kill Streak 12 | 1 12 3 5 Combat Bots Only 5 | 1 5 3 5 Max Kills in Single Turn 3 | 1 3 1 1 Gunslinging . | . . . . Exploded 3 | . 3 1 . Melee . | . . . . Uniques/NPCs Destroyed . | . . . . Combat | -11 -10 -10 -9 -------- Run | Yrd Mat Min Mat Hostile Shots Fired 170 | 5 13 33 119 Missed 43 | 1 5 9 28 Damage Taken 1714 | 45 148 421 1100 Core 529 | 11 10 103 405 Absorbed by Shields . | . . . . Core Remaining (%) 72 | 95 . 50 . Volleys Fired 85 | 4 8 27 46 Largest 2 | 2 2 2 2 Hottest 90 | 90 80 90 80 Shots Fired 141 | 8 16 45 72 Gun 129 | 8 8 41 72 Cannon . | . . . . Launcher 12 | . 8 4 . Special . | . . . . Kinetic 30 | . . 8 22 Thermal 86 | 8 8 27 43 Explosive 12 | . 8 4 . Electromagnetic 13 | . . 6 7 Robot Hit Streak 11 | 6 8 5 11 Robot Miss Streak 4 | 1 1 3 4 Penetration Max . | . . . . Secondary Targets 2 | . . . 2 Max Gunslinging Chain 1 | . . . 1 Shots Hit Robots 87 | 6 2 25 54 Core Hits 54 | 2 17 18 17 Critical Kills . | . . . . Critical Parts Destroyed . | . . . . Critical Strikes . | . . . . Melee Attacks . | . . . . Impact . | . . . . Slashing . | . . . . Piercing . | . . . . Sneak Attacks . | . . . . Combat Hostiles . | . . . . Follow-up Attacks . | . . . . Damage Inflicted 1693 | 69 556 512 556 Guns 909 | 69 50 252 538 Cannons . | . . . . Explosions 763 | . 506 257 . Melee . | . . . . Ramming 21 | . . 3 18 Kinetic 163 | . . 49 114 Thermal 736 | 69 50 258 359 Explosive 666 | . 506 160 . Electromagnetic 107 | . . 42 65 Impact . | . . . . Slashing . | . . . . Piercing . | . . . . Highest Corruption . | . . . . Average Corruption . | . . . . Corruption Purged . | . . . . Corruption Blocked . | . . . . Overload Shots . | . . . . Overflow Damage 12 | . 5 7 . Projectiles . | . . . . Explosions 12 | . 5 7 . Melee . | . . . . Knockbacks . | . . . . Impact . | . . . . Kinetic . | . . . . Secondary . | . . . . Self-Inflicted Damage 173 | . 79 86 8 Shots 5 | . 2 3 . Rammed 3 | . . . 3 Targets Rammed 5 | . . 1 4 Kicked 2 | . . 1 1 Crushed . | . . . . Highest Temperature 144 | 144 2 68 39 Average Temperature 34 | 77 2 33 13 Received Heat Transfer 539 | 24 18 176 321 Siege Activations . | . . . . Robots Corrupted . | . . . . Combat Hostiles . | . . . . Parts Fried . | . . . . Impact Corruptions . | . . . . Robots Melted . | . . . . Combat Hostiles . | . . . . Parts Melted 5 | 1 . . 4 Heat Transferred 1778 | 186 148 619 825 Parts Sabotaged . | . . . . Parts Stolen . | . . . . Parts Stripped . | . . . . Power Chain Reactions 1 | . . 1 . Alert | -11 -10 -10 -9 ------- Run | Yrd Mat Min Mat Peak Influence 249 | 20 249 103 165 Initial 96 | . 13 96 9 Average 55 | 2 66 63 51 Maximum Alert Level 1 | . 1 . . Low Security (%) 97 | 100 81 100 100 Level 1 2 | . 18 . . Level 2 . | . . . . Level 3 . | . . . . Level 4 . | . . . . Level 5 . | . . . . High Security . | . . . . Max Security . | . . . . Squads Dispatched 2 | . . . 2 Investigation . | . . . . Extermination . | . . . . Reinforcement 2 | . . . 2 Assault . | . . . . Garrison . | . . . . Intercept . | . . . . Searches Triggered . | . . . . Construction Impeded . | . . . . Haulers Reinforced . | . . . . Active Scanning Responses . | . . . . Cargo Convoy Interrupts . | . . . . Stealth | -11 -10 -10 -9 --------- Run | Yrd Mat Min Mat Distress Signals 1 | . 1 . . Communications Jammed . | . . . . Distress Signals . | . . . . Times Spotted 35 | 1 8 8 18 Peak Tracking Total 6 | 1 4 2 6 Tactical Retreats 1 | . . . 1 Traps | -11 -10 -10 -9 ------- Run | Yrd Mat Min Mat Traps Triggered 1 | . . . 1 Indirectly . | . . . . Trap Hack Attempts . | . . . . Triggered . | . . . . Disarmed . | . . . . Reprogrammed . | . . . . Reused . | . . . . Traps Extracted . | . . . . Installed . | . . . . Triggered . | . . . . Machines | -11 -10 -10 -9 ---------- Run | Yrd Mat Min Mat Machines Disabled . | . . . . Max in Single Turn . | . . . . Machines Repaired . | . . . . Machines Dismantled . | . . . . Machines Sabotaged . | . . . . Overloaded Fab Kills . | . . . . Hacking | -11 -10 -10 -9 --------- Run | Yrd Mat Min Mat Machines Accessed 1 | . 1 . . Terminals 1 | . 1 . . Fabricators . | . . . . Repair Stations . | . . . . Recycling Units . | . . . . Scanalyzers . | . . . . Garrison Access . | . . . . Total Hacks 3 | . 3 . . Successful . | . . . . Failed 3 | . 3 . . Catastrophic 1 | . 1 . . Database Lockouts . | . . . . Manual . | . . . . Terminals 3 | . 3 . . Fabricators . | . . . . Repair Stations . | . . . . Recycling Units . | . . . . Scanalyzers . | . . . . Garrison Access . | . . . . Terminal Hacks . | . . . . Fabricator Hacks . | . . . . Repair Station Hacks . | . . . . Recycling Unit Hacks . | . . . . Scanalyzer . | . . . . Garrison Access Hacks . | . . . . Unauthorized Hacks . | . . . . Terminals . | . . . . Fabricators . | . . . . Repair Stations . | . . . . Recycling Units . | . . . . Scanalyzers . | . . . . Garrison Access . | . . . . Data Cores Recovered . | . . . . Used . | . . . . Hacking Detections 1 | . 1 . . Full Trace Events . | . . . . Feedback Events . | . . . . Feedback Blocked . | . . . . Robot Schematics Acquired . | . . . . Robots Built . | . . . . Authchips . | . . . . Time . | . . . . Total Robot Build Rating . | . . . . Part Schematics Acquired . | . . . . Parts Built . | . . . . Authchips . | . . . . Time . | . . . . Total Part Build Rating . | . . . . Parts Repaired . | . . . . Time . | . . . . Parts Recycled . | . . . . Recycled Matter . | . . . . Retrieved Matter . | . . . . Retrieved Components . | . . . . Parts Scanalyzed . | . . . . Part Schematics Acquired . | . . . . Parts Damaged . | . . . . Bothacking | -11 -10 -10 -9 ------------ Run | Yrd Mat Min Mat Used RIF Installer . | . . . . Robots Hacked . | . . . . Non-combat . | . . . . Combat . | . . . . Robot Hacks Applied . | . . . . Relay Couplers Released . | . . . . Fabnet Peak Effective % . | . . . . Robots Rewired . | . . . . Allies Hacked . | . . . . Hacks Repelled . | . . . . Allies | -11 -10 -10 -9 -------- Run | Yrd Mat Min Mat Total Allies . | . . . . Largest Group . | . . . . Highest-Rated Group . | . . . . Highest-Rated Ally . | . . . . Total Orders . | . . . . Ally Attacks . | . . . . Total Damage . | . . . . Kills . | . . . . Allies Corrupted . | . . . . Allies Melted . | . . . . Intel | -11 -10 -10 -9 ------- Run | Yrd Mat Min Mat Robot Analysis Total . | . . . . Derelict Logs Recovered 1 | . . 1 . Drone Launches . | . . . . Drone Recoveries . | . . . . Exploration | -11 -10 -10 -9 ------------- Run | Yrd Mat Min Mat Turns Passed 1577 | 115 229 633 600 Spaces Moved 836 | 72 84 386 294 Core 40 | 17 . . 23 Treads . | . . . . Legs 688 | 55 84 386 163 Wheels 108 | . . . 108 Hover . | . . . . Flight . | . . . . Fastest Speed 50 | 50 120 120 80 Average Speed 125 | 103 120 138 115 Slowest Speed 250 | 120 120 190 250 Overloaded Moves . | . . . . Propulsion Burnouts . | . . . . Robots Hopped . | . . . . Cave-ins Triggered . | . . . . Exploration Rate (%) 40 | 8 22 94 36 Regions Visited 3 Branch Regions 1 Pre-discovered Areas 1 | . . 1 . Known Exits Taken . | . . . . Unknown Exits Taken 3 | 1 1 1 . Scrap Searched 1 | . . 1 . Spaces Dug . | . . . . Terrain Destroyed 56 | . 33 23 . Melee . | . . . . Projectile . | . . . . AOE 56 | . 33 23 . Terrain Rammed . | . . . . Walls Destroyed . | . . . . Machines Disabled . | . . . . Actions | -11 -10 -10 -9 --------- Run | Yrd Mat Min Mat Total 1219 | 102 195 438 484 Wait 246 | 16 92 14 124 Move 833 | 71 83 385 294 Hop . | . . . . Pick Up 22 | 6 7 1 8 Fast Attach 5 | 4 1 . . Attach 16 | 1 2 5 8 Detach . | . . . . Swap 6 | . 1 5 . Drop 1 | . 1 . . Fire 85 | 4 8 27 46 Melee . | . . . . Ram 3 | . . . 3 Kick 2 | . . 1 1 Crush . | . . . . Escape Stasis . | . . . . Rewire . | . . . . Trap . | . . . . Miscellaneous . | . . . . Route ------- -11/Scrapyard -10/Materials -10/Mines -9/Materials (discovered 1 exit: [*Sto]) History --------- Turn | Location | Event 2 | -11/Scrapyard | Met Revision 17 71 | -11/Scrapyard | Discovered new exit (range 8) 116 | -11/Scrapyard | Entered Materials 307 | -10/Materials | Build established: Mutant 316 | -10/Materials | Discovered new exit (range 10) 345 | -10/Materials | Entered Mines 356 | -10/Mines | Learned location of Zion (-7) 516 | -10/Mines | Assembled infested the area 521 | -10/Mines | Assisted by a Guerilla fighting off Assembled 926 | -10/Mines | Lost 3 parts (1p2w) 970 | -10/Mines | Discovered new exit (range 6) 978 | -10/Mines | Entered Materials 978 | -9/Materials | Evolved 2 slots: Propulsion x1, Utility x1 1449 | -9/Materials | Discovered new exit (range 14) 1503 | -9/Materials | Core integrity fell below 50% 1564 | -9/Materials | Core integrity fell below 20% 1573 | -9/Materials | Lost 9 parts (1p2n2u4w) 1578 | -9/Materials | Destroyed by Y-45 Defender with Beam Rifle Last Messages --------------- 01532_ U-05 Engineer works on Atomic Centrifuge. 01532_ K-01 Serf collects debris. 01532_ Slammed into S-10 Pest. 01534_ K-01 Serf collects debris. 01534_ Slammed into K-01 Serf. 01534_ Destabilizing: Core damaged (-16). 01535_ R-06 Scavenger collects Corrupted Heat Sink. 01535_ K-01 Serf collects debris. 01536_ M-13 Machinist repairs U-05 Engineer. 01538_ R-06 Scavenger collects Lgt. Ion Engine. 01538_ Acquired 5 matter. 01541_ K-01 Serf collects debris. 01542_ R-06 Scavenger collects Corrupted Lgt. Treads. 01542_ U-05 Engineer works on Atomic Centrifuge. 01542_ Disposable Heat Sink destroyed. 01545_ R-06 Scavenger collects Flight Unit. 01545_ K-01 Serf collects debris. 01548_ U-05 Engineer works on Atomic Centrifuge. 01548_ K-01 Serf collects debris. [Achievement: First Step to Greatness] Map ----- +----------------------------------------------------+ | ?????????????????????????????????????????? | | ?????????????????????????????????????????? | | ?????????????????????????????????????????? | | ?????????????????????????????????????????? | | ?????????????????????????????????????????? | | ?????????????????????????????????????????? | | ?????????????????????????????????????????? | | ????????????????????????? ?????????????? | | ????????????????????????# #????????????? | | ????????????????????????# #????????????? | | ????????????????????????+^ +????????????? | | ????????????????????????# #????????????? | | ????????????????????????# #????????????? | | ?????????????????##+##### #???????# #??? | | ?????????????????# #???????= ??? | | ?????????????????# #??????? < ??? | | ?????????????????# """ #??????? ! ??? | | ?????????????????# "T" #???????# #??? | | ?????????????????# #???????# #??? | | ?????????????????# #####??## ##?? | | ??????????######## %| #??# # ! | | ??????????# || #### + | | ??????????# ! #?? | | ??????????# #?? | | ??????????+ ###s########### #?? | | ??????????# ??# @ #????# """ #?? | | ??????????????# "T" #????# """ ### | | ??????????????# #????# """ [ | | ??????????????# ###### % | | ??????????????# + %*! | | ??????????????# """ #######/########### | | ??????????????# """ #??# =[=%[ #?????? | | ??????????????# """ #??# [% #?????? | | ??????????????# #??# * #?????? | | ??????????????#Y#####?????# #?????? | | ??????????????##??????????#[] #?????? | | ??????????????????????????#[]] "" #?????? | | ??????????????????????????#[] " [#?????? | | ??????????????????????????# #?????? | | ??????????????????????????# #?????? | | ??????????????????????????##########?????? | | ?????????????????????????????????????????? | | | | | | | | | | | | | | | | | +----------------------------------------------------+ Best States ------------- Heat Dissipation 38 Coolant Potential 50 Energy Generation 10 Energy Capacity 125 Matter Stores 300 Matter Capacity 300 Sight Range 16 Terrain Scan Density 10 Evasion (%) 55 Item Schematics ----------------- None Robot Schematics ------------------ None Fabricated ------------ Nothing Alien Tech Used ----------------- None Achievements -------------- Crack Shot First Step to Greatness I Survived The Infestation Let's See Who's Tougher Loot Pinata Uninvited Guest Challenges ------------ None Game ------ Seed NeutrinoChromaticCompressor Manual? 0 Play Time 00:49:53 Cumulative 0.8 hours Start 2024.10.22 @ 02:40:08 End 2024.12.12 @ 02:27:26 Sessions 8 Manual Loads 0 Difficulty Rogue Special Mode None Game No. 1 Rogue 1 Adventurer 0 Explorer 0 Win Type - Total 0 Types 0/0/0/0/0/0/0/0/0 Lore% 0 Gallery% 1 Achievement% 2 Wizard Run 0 Options --------- Layout 0 ASCII 0 Keyboard 1 Movement Numpad Keybinds 0 Fullscreen 2 Font 18/SmallcapsGlow Map View 76x50 Zoom Use 0% Tactical HUD 1 Map Filters NONE Filters NONE Steam 1 RUN: bd98607d-06be-4904-9faf-7c4074df67b7